fUSD/lending_fUSD_20250916
["ID","MTS","AMOUNT","RATE_DAILY","PERIOD"]
[385710609,1757982657746,-400.0,0.00035616,7]
[385710610,1757982657755,-400.0,0.00035616,7]
[385710611,1757982657764,-400.0,0.00035616,7]
[385710612,1757982657773,-400.0,0.00035616,7]
[385710613,1757982657784,-361.67122561,0.00035616,7]
[385710614,1757982657793,-400.0,0.00035616,7]
[385710615,1757982657803,-167.900711,0.00035616,7]
[385710616,1757982657812,-400.0,0.00035616,7]
[385710617,1757982657822,-400.0,0.00035616,7]
[385710618,1757982657831,-400.0,0.00035616,7]
[385710619,1757982657841,-400.0,0.00035616,7]
[385710620,1757982657850,-400.0,0.00035616,7]
[385710621,1757982657860,-400.0,0.00035616,7]
[385710622,1757982657869,-400.0,0.00035616,7]
[385710623,1757982657879,-400.0,0.00035616,7]
[385710624,1757982657888,-362.87,0.00035616,7]
[385710625,1757982657897,-400.0,0.00035616,7]
[385710626,1757982657907,-400.0,0.00035616,7]
[385710627,1757982657916,-400.0,0.00035616,7]
[385710628,1757982657925,-400.0,0.00035616,7]
[385710629,1757982657934,-400.0,0.00035616,7]
[385710630,1757982657943,-400.0,0.00035616,7]
[385710631,1757982657953,-400.0,0.00035616,7]
[385710632,1757982657962,-400.0,0.00035616,7]
[385710633,1757982657971,-400.0,0.00035616,7]
[385710634,1757982657980,-400.0,0.00035616,7]
[385710635,1757982657989,-400.0,0.00035616,7]
[385710636,1757982657998,-527.54,0.00035616,7]
[385710637,1757982658007,-400.0,0.00035616,7]
[385710638,1757982658016,-400.0,0.00035616,7]
[385710639,1757982658026,-400.0,0.00035616,7]
[385710640,1757982658035,-400.0,0.00035616,7]
[385710641,1757982658044,-400.0,0.00035616,7]
[385710642,1757982658052,-400.0,0.00035616,7]
[385710643,1757982658061,-400.0,0.00035616,7]
[385710644,1757982658070,-400.0,0.00035616,7]
[385710645,1757982658079,-400.0,0.00035616,7]
[385710646,1757982658154,-400.0,0.00035616,7]
[385710647,1757982658163,-400.0,0.00035616,7]
[385710648,1757982658171,-400.0,0.00035616,7]
[385710649,1757982658181,-400.0,0.00035616,7]
[385710650,1757982658189,-243.0619437,0.00035616,7]
[385710651,1757982658198,-400.0,0.00035616,7]
[385710652,1757982658207,-400.0,0.00035616,7]
[385710653,1757982658216,-400.0,0.00035616,7]
[385710654,1757982658225,-400.0,0.00035616,7]
[385710655,1757982658233,-400.0,0.00035616,7]
[385710656,1757982658242,-400.0,0.00035616,7]
[385710657,1757982658251,-166.73,0.00035616,7]
[385710658,1757982658260,-400.0,0.00035616,7]
[385710659,1757982658269,-533.44656123,0.00035616,7]
[385710660,1757982658277,-400.0,0.00035616,7]
[385710661,1757982658286,-153.24,0.00035616,7]
[385710662,1757982658295,-400.0,0.00035616,7]
[385710663,1757982658304,-400.0,0.00035616,7]
[385710664,1757982658312,-400.0,0.00035616,7]
[385710665,1757982658321,-400.66992106,0.00035616,7]
[385710666,1757982658330,-400.0,0.00035616,7]
[385710667,1757982658339,-400.0,0.00035616,7]
[385710668,1757982658348,-400.0,0.00035616,7]
[385710669,1757982658358,-400.0,0.00035616,7]
[385710670,1757982658367,-400.0,0.00035616,7]
[385710671,1757982658377,-400.0,0.00035616,7]
[385710672,1757982658390,-400.0,0.00035616,7]
[385710673,1757982658399,-400.0,0.00035616,7]
[385710674,1757982658408,-400.0,0.00035616,7]
[385710675,1757982658417,-400.0,0.00035616,7]
[385710676,1757982658427,-400.0,0.00035616,7]
[385710677,1757982658435,-400.0,0.00035616,7]
[385710678,1757982658444,-400.0,0.00035616,7]
[385710679,1757982658453,-400.0,0.00035616,7]
[385710680,1757982658463,-400.0,0.00035616,7]
[385710681,1757982658472,-400.0,0.00035616,7]
[385710682,1757982658481,-400.0,0.00035616,7]
[385710683,1757982658490,-400.0,0.00035616,7]
[385710684,1757982658499,-400.0,0.00035616,7]
[385710685,1757982658508,-400.0,0.00035616,7]
[385710686,1757982658517,-400.0,0.00035616,7]
[385710687,1757982658526,-400.0,0.00035616,7]
[385710688,1757982658536,-400.0,0.00035616,7]
[385710689,1757982658548,-173.8771688,0.00035616,7]
[385710690,1757982658557,-400.0,0.00035616,7]
[385710691,1757982658566,-400.0,0.00035616,7]
[385710692,1757982658575,-288.95,0.00035616,7]
[385710693,1757982658584,-400.0,0.00035616,7]
[385710694,1757982658593,-400.0,0.00035616,7]
[385710695,1757982658602,-400.0,0.00035616,7]
[385710696,1757982658611,-309.38715101,0.00035616,7]
[385710697,1757982658620,-400.0,0.00035616,7]
[385710698,1757982658628,-400.0,0.00035616,7]
[385710699,1757982658638,-400.0,0.00035616,7]
[385710700,1757982658647,-400.0,0.00035616,7]
[385710701,1757982658656,-400.0,0.00035616,7]
[385710702,1757982658665,-400.0,0.00035616,7]
[385710703,1757982658673,-400.0,0.00035616,7]
[385710704,1757982658682,-400.0,0.00035616,7]
[385710705,1757982658691,-400.0,0.00035616,7]
[385710706,1757982658701,-400.0,0.00035616,7]
[385710707,1757982658710,-400.0,0.00035616,7]
[385710708,1757982658719,-453.78,0.00035616,7]
[385710709,1757982658728,-400.0,0.00035616,7]
[385710710,1757982658737,-453.78,0.00035616,7]
[385710711,1757982658747,-400.0,0.00035616,7]
[385710712,1757982658756,-453.78,0.00035616,7]
[385710713,1757982658765,-400.0,0.00035616,7]
[385710714,1757982658774,-400.0,0.00035616,7]
[385710715,1757982658783,-400.0,0.00035616,7]
[385710716,1757982658792,-453.78,0.00035616,7]
[385710717,1757982658801,-400.0,0.00035616,7]
[385710718,1757982658810,-400.0,0.00035616,7]
[385710719,1757982658819,-453.78,0.00035616,7]
[385710720,1757982658828,-490.0,0.00035616,7]
[385710721,1757982658837,-453.78,0.00035616,7]
[385710722,1757982658846,-400.0,0.00035616,7]
[385710723,1757982658854,-453.78,0.00035616,7]
[385710724,1757982658863,-443.83233372,0.00035616,7]
[385710725,1757982658872,-453.78,0.00035616,7]
[385710726,1757982658881,-400.0,0.00035616,7]
[385710727,1757982658890,-453.78,0.00035616,7]
[385710728,1757982658900,-400.0,0.00035616,7]
[385710729,1757982658909,-453.78,0.00035616,7]
[385710730,1757982658918,-400.0,0.00035616,7]
[385710731,1757982658926,-400.0,0.00035616,7]
[385710732,1757982658936,-453.78,0.00035616,7]
[385710733,1757982658945,-400.0,0.00035616,7]
[385710734,1757982658954,-400.0,0.00035616,7]
[385710735,1757982658963,-453.78,0.00035616,7]
[385710736,1757982658973,-400.0,0.00035616,7]
[385710737,1757982658981,-400.0,0.00035616,7]
[385710738,1757982658990,-400.0,0.00035616,7]
[385710739,1757982658999,-477.81,0.00035616,7]
[385710740,1757982659008,-400.0,0.00035616,7]
[385710741,1757982659017,-453.78,0.00035616,7]
[385710742,1757982659025,-400.0,0.00035616,7]
[385710743,1757982659034,-453.78,0.00035616,7]
[385710744,1757982659043,-453.78,0.00035616,7]
[385710745,1757982659052,-453.78,0.00035616,7]
[385710746,1757982659062,-453.78,0.00035616,7]
[385710747,1757982659071,-453.78,0.00035616,7]
[385710748,1757982659080,-453.78,0.00035616,7]
[385710749,1757982659090,-453.78,0.00035616,7]
[385710750,1757982659099,-400.0,0.00035616,7]
[385710751,1757982659109,-400.0,0.00035616,7]
[385710752,1757982659118,-453.78,0.00035616,7]
[385710753,1757982659127,-400.0,0.00035616,7]
[385710754,1757982659136,-400.0,0.00035616,7]
[385710755,1757982659145,-400.0,0.00035616,7]
[385710756,1757982659154,-453.78,0.00035616,7]
[385710757,1757982659163,-400.0,0.00035616,7]
[385710758,1757982659172,-400.0,0.00035616,7]
[385710759,1757982659181,-400.0,0.00035616,7]
[385710760,1757982659190,-400.0,0.00035616,7]
[385710761,1757982659199,-453.78,0.00035616,7]
[385710762,1757982659208,-400.0,0.00035616,7]
[385710763,1757982659217,-400.0,0.00035616,7]
[385710764,1757982659226,-400.0,0.00035616,7]
[385710765,1757982659237,-453.88,0.00035616,7]
[385710766,1757982659246,-400.0,0.00035616,7]
[385710767,1757982659255,-400.0,0.00035616,7]
[385710768,1757982659264,-400.0,0.00035616,7]
[385710769,1757982659274,-400.0,0.00035616,7]
[385710770,1757982659283,-320.57499461,0.00035616,7]
[385710771,1757982661097,-1800.0,0.000299,10]
[385710772,1757982661107,-79.42500539,0.00035616,7]
[385710773,1757982661116,-400.0,0.00035616,7]
[385710774,1757982661125,-400.0,0.00035616,7]
[385710775,1757982661135,-400.0,0.00035616,7]
[385710776,1757982661144,-400.0,0.00035616,7]
[385710777,1757982661153,-400.0,0.00035616,7]
[385710778,1757982661162,-99.66057467,0.00035616,7]
[385710779,1757982662317,-161.569088,0.00027992,7]
[385710780,1757982662326,-171.81147808,0.0003291,30]
[385710781,1757982662336,-154.27423533,0.00034207,2]
[385710782,1757982662349,-246.52873911,0.00035616,7]
[385710783,1757982663285,-53.81068622,0.00035616,7]
[385710784,1757982663295,-400.0,0.00035616,7]
[385710785,1757982663305,-400.0,0.00035616,7]
[385710786,1757982663314,-400.0,0.00035616,7]
[385710787,1757982663325,-400.0,0.00035616,7]
[385710788,1757982663334,-400.0,0.00035616,7]
[385710789,1757982663344,-400.0,0.00035616,7]
[385710790,1757982663354,-429.64,0.00035616,7]
[385710791,1757982663363,-400.0,0.00035616,7]
[385710792,1757982663373,-400.0,0.00035616,7]
[385710793,1757982663385,-400.0,0.00035616,7]
[385710794,1757982663394,-400.0,0.00035616,7]
[385710795,1757982663403,-400.0,0.00035616,7]
[385710796,1757982663412,-400.0,0.00035616,7]
[385710797,1757982663421,-400.0,0.00035616,7]
[385710798,1757982663431,-400.0,0.00035616,7]
[385710799,1757982663440,-678.29,0.00035616,7]
[385710800,1757982663449,-13.62374171,0.00035616,7]
[385710805,1757983339852,159.94,0.0001623,2]
[385710811,1757983748807,1751.14,0.000252,29]
[385710823,1757983831677,-159.94,0.00024344,2]
[385710825,1757983831686,-182.76550364,0.000249,2]
[385710826,1757983831732,-529.03406263,0.000249,2]
[385710827,1757983831743,-3491.83537606,0.000249,2]
[385710828,1757983832055,-6649.73170333,0.000249,2]
[385710829,1757983832065,-500.0,0.00024932,2]
[385710830,1757983832074,-223.0,0.00027,7]
[385710831,1757983832083,-158.0,0.00027,7]
[385710832,1757983832092,-539.0,0.00027137,2]
[385710833,1757983832101,-400.0,0.00027397,2]
[385710834,1757983832111,-158.0,0.00027671,14]
[385710835,1757983832119,-407.21076483,0.00027808,2]
[385710836,1757983832128,-223.0,0.00028767,14]
[385710837,1757983832138,-158.0,0.00028767,14]
[385710838,1757983832147,-3087.0,0.000294,3]
[385710839,1757983832156,-202.165,0.00029999,2]
[385710840,1757983832165,-1755.27,0.00030137,7]
[385710841,1757983832174,-5513.0,0.000302,5]
[385710842,1757983832183,-161.0,0.00030205,14]
[385710843,1757983832192,-442.654,0.00030234,25]
[385710844,1757983832201,-160.0,0.00030256,2]
[385710845,1757983832210,-515.83930443,0.00030256,2]
[385710847,1757983832219,-500.0,0.00030515,7]
[385710849,1757983832228,-500.0,0.00030977,7]
[385710851,1757983832237,-153.0,0.00031,120]
[385710853,1757983832246,-159.0,0.00031,120]
[385710855,1757983832255,-500.0,0.00031086,7]
[385710857,1757983832264,-500.0,0.00031178,7]
[385710859,1757983832273,-178.59,0.0003198,2]
[385710861,1757983832282,-163.43,0.00032013,2]
[385710863,1757983832291,-193.42095842,0.0003203,7]
[385710865,1757983832300,-150.00000001,0.0003203,7]
[385710867,1757983832310,-150.0,0.0003203,7]
[385710869,1757983832319,-150.0,0.0003203,7]
[385710871,1757983832327,-156.58647837,0.0003203,7]
[385710873,1757983832336,-250.0,0.00032041,2]
[385710875,1757983832345,-500.0,0.00032062,7]
[385710877,1757983832354,-904.68,0.00032132,2]
[385710879,1757983832364,-500.0,0.00032188,7]
[385710881,1757983832373,-1000.0,0.00032396,2]
[385710883,1757983832382,-500.0,0.00032413,7]
[385710885,1757983832392,-159.94,0.00032459,2]
[385710886,1757983832402,-500.0,0.00032494,7]
[385710888,1757983832411,-164.38,0.00032539,30]
[385710890,1757983832420,-3000.0,0.00032596,2]
[385710892,1757983832431,-937.21,0.0003266,2]
[385710895,1757983832446,-404.33,0.00032739,7]
[385710896,1757983832455,-500.0,0.00032795,7]
[385710898,1757983832465,-83.94525583,0.0003281,7]
[385710920,1757983837695,-413.68951215,0.0003281,7]
[385711144,1757983840015,-2.36523202,0.0003281,7]
[385711145,1757983840025,-443.72124469,0.00032848,7]
[385711148,1757983840050,-56.27875531,0.00032848,7]
[385711150,1757983840059,-500.0,0.00032957,7]
[385711152,1757983840068,-531.83801353,0.00032987,2]
[385711154,1757983840079,-2607.27198647,0.00032987,2]
[385711156,1757983840089,-1365.01,0.00032987,2]
[385711158,1757983840099,-150.0,0.00033032,7]
[385711160,1757983840107,-159.8,0.00033066,2]
[385711162,1757983840117,-208.42,0.0003307,120]
[385711164,1757983840126,-310.73,0.00033118,2]
[385711166,1757983840135,-500.0,0.00033145,7]
[385711168,1757983840143,-666.0,0.00033168,3]
[385711170,1757983840152,-500.0,0.00033182,2]
[385711172,1757983840162,-1003.39802384,0.00033224,2]
[385711174,1757983840171,-500.0,0.00033225,7]
[385711176,1757983840180,-353.46,0.00033398,2]
[385711178,1757983840189,-1500.0,0.00033416,16]
[385711180,1757983840198,-500.0,0.0003358,7]
[385711182,1757983840207,-500.0,0.00033744,7]
[385711184,1757983840216,-500.0,0.00034066,7]
[385711186,1757983840226,-500.0,0.00034099,7]
[385711188,1757983840235,-500.0,0.00034102,7]
[385711190,1757983840244,-178.59,0.00034112,2]
[385711192,1757983840254,-345.42,0.00034131,60]
[385711194,1757983840263,-278.0,0.00034182,2]
[385711196,1757983840272,-345.42,0.00034231,60]
[385711198,1757983840281,-500.0,0.00034232,7]
[385711200,1757983840290,-153.0,0.000343,120]
[385711202,1757983840299,-500.0,0.00034302,7]
[385711204,1757983840308,-278.0,0.00034325,7]
[385711207,1757983840318,-279.0,0.00034327,2]
[385711209,1757983840327,-345.42,0.00034331,60]
[385711211,1757983840336,-278.0,0.0003439,2]
[385711213,1757983840345,-453.0,0.000344,2]
[385711214,1757983840354,-600.0,0.00034409,7]
[385711217,1757983840363,-345.42,0.00034431,60]
[385711219,1757983840372,-279.0,0.00034467,7]
[385711221,1757983840382,-500.0,0.00034483,7]
[385711223,1757983840391,-500.0,0.00034483,7]
[385711225,1757983840400,-500.0,0.00034483,7]
[385711227,1757983840409,-950.75956972,0.00034488,2]
[385711232,1757983840452,-474.24043028,0.00034488,2]
[385711234,1757983840462,-158.0,0.00034521,30]
[385711236,1757983840471,-500.0,0.00034529,7]
[385711238,1757983840480,-345.42,0.00034531,60]
[385711240,1757983840490,-221.61393487,0.00034547,2]
[385711243,1757983840508,-302.0,0.00034547,2]
[385711294,1757983842708,-645.42190025,0.00034547,2]
[385711419,1757983845686,-1070.71420069,0.00034547,2]
[385711420,1757983845698,-227.50281827,0.00034547,2]
[385711421,1757983845708,-345.42,0.00034631,60]
[385711422,1757983845717,-159.8,0.00034719,2]
[385711423,1757983845727,-345.42,0.00034731,60]
[385711424,1757983845736,-278.0,0.00034742,2]
[385711425,1757983845746,-955.55718175,0.00034752,2]
[385711430,1757984279260,198.64,0.00015964,2]
[385711433,1757984456783,1500.0,0.00030137,120]
[385711440,1757985031953,-198.08991919,0.00024899,2]
[385711441,1757985031964,-300.0,0.00024899,2]
[385711442,1757985031973,-394.20378568,0.00024899,2]
[385711443,1757985031984,-805.79621432,0.00024899,2]
[385711444,1757985031993,-887.78815154,0.000249,2]
[385711445,1757985032014,-703.26815045,0.000249,2]
[385711446,1757985032025,-6436.01019916,0.000249,2]
[385711447,1757985032036,-1334.77235152,0.000249,2]
[385711448,1757985032125,-1057.39312725,0.000249,2]
[385711449,1757985032134,-183.51,0.00025328,2]
[385711450,1757985032143,-1908.0,0.000268,2]
[385711451,1757985032153,-223.0,0.00027,7]
[385711452,1757985032162,-1073.0,0.00027099,2]
[385711453,1757985032171,-5513.0,0.000274,3]
[385711454,1757985032181,-578.98184351,0.00027829,2]
[385711456,1757985032190,-150.0,0.00027868,7]
[385711457,1757985032199,-666.0,0.00027938,3]
[385711458,1757985032210,-339.01,0.00027984,2]
[385711459,1757985032219,-324.92,0.00028039,2]
[385711460,1757985032228,-5513.0,0.000281,5]
[385711461,1757985032237,-2108.21,0.00028116,2]
[385711462,1757985032249,-572.14,0.00028156,2]
[385711463,1757985032258,-8000.49,0.0002836,2]
[385711464,1757985032268,-317.62,0.00028399,2]
[385711465,1757985032279,-2332.83,0.00028411,2]
[385711466,1757985032288,-211.25,0.00028657,2]
[385711467,1757985032298,-4333.78065521,0.00028755,2]
[385711468,1757985032307,-190.53333333,0.000288,2]
[385711469,1757985032316,-600.0,0.000289,10]
[385711470,1757985032326,-190.53333333,0.000291,2]
[385711471,1757985032335,-151.29791774,0.00029156,2]
[385711473,1757985032344,-1100.0,0.00029166,2]
[385711475,1757985032354,-5445.55249538,0.00029167,2]
[385711476,1757985032363,-158.51751288,0.00029167,15]
[385711477,1757985032373,-5897.62021487,0.00029167,2]
[385711478,1757985032383,-213.09107078,0.00029256,3]
[385711479,1757985032392,-160.0,0.00029256,3]
[385711481,1757985032402,-90477.58025701,0.00029257,2]
[385711482,1757985032415,-3085.25940015,0.00029257,2]
[385711483,1757985032432,-16372.47623132,0.00029257,2]
[385711493,1757985032586,-383.96528472,0.00029257,2]
[385711528,1757985037750,-1402.2,0.00029256,2]
[385711529,1757985037762,-1903.4859,0.00029256,2]
[385711530,1757985037906,-17296.3014661,0.00029256,2]
[385711531,1757985037916,-485454.41843461,0.00029256,3]
[385711532,1757985037926,-9580.0191288,0.00029257,2]
[385711533,1757985037936,-9223.02310015,0.00029257,2]
[385711534,1757985037946,-515.83930443,0.00029267,3]
[385711535,1757985037956,-36892.0924006,0.00029268,2]
[385711536,1757985037965,-24915.5477608,0.00029268,2]
[385711537,1757985037975,-500.0,0.00029273,5]
[385711538,1757985037985,-73437.6099982,0.00029278,7]
[385711539,1757985037994,-515.83930443,0.00029278,7]
[385711540,1757985038003,-190.53333333,0.000294,2]
[385711541,1757985038014,-250.0,0.00029737,2]
[385711542,1757985038024,-1899.6658,0.00029836,10]
[385711543,1757985038034,-8305.18258694,0.00029862,2]
[385711544,1757985038043,-5445.55249536,0.00029872,2]
[385711545,1757985038053,-5897.62021485,0.00029872,2]
[385711546,1757985038063,-211.25,0.0003009,2]
[385711547,1757985038073,-157.1,0.00030137,30]
[385711548,1757985038083,-559.466,0.00030235,25]
[385711549,1757985038093,-199.54,0.00030235,25]
[385711550,1757985038104,-213.09107078,0.000303,2]
[385711551,1757985038113,-160.0,0.000303,2]
[385711552,1757985038122,-160.0,0.00030313,2]
[385711553,1757985038131,-500.0,0.00030357,7]
[385711554,1757985038140,-500.0,0.00030397,7]
[385711555,1757985038150,-9223.02310015,0.00030435,2]
[385711556,1757985038160,-176.43,0.00030445,2]
[385711558,1757985038169,-854.80176529,0.00030531,2]
[385711560,1757985038178,-8305.18258694,0.00030568,2]
[385711562,1757985038187,-5445.55249536,0.00030578,2]
[385711564,1757985038197,-5897.62021485,0.00030578,2]
[385711566,1757985038206,-500.0,0.00030685,7]
[385711568,1757985038216,-500.0,0.00030742,7]
[385711570,1757985038225,-161.20297568,0.000309,2]
[385711572,1757985038234,-161.20297567,0.000309,2]
[385711574,1757985038245,-500.0,0.00030907,7]
[385711576,1757985038254,-161.20297567,0.00030973,2]
[385711578,1757985038263,-154.0,0.00031,120]
[385711580,1757985038272,-500.0,0.00031011,7]
[385711582,1757985038281,-500.0,0.00031059,7]
[385711584,1757985038290,-500.0,0.00031182,7]
[385711586,1757985038300,-500.0,0.00031222,7]
[385711588,1757985038310,-500.0,0.00031263,7]
[385711590,1757985038319,-9223.02310015,0.00031273,2]
[385711592,1757985038329,-5445.55249536,0.00031283,2]
[385711594,1757985038338,-5897.62021485,0.00031283,2]
[385711596,1757985038347,-500.0,0.000313,7]
[385711598,1757985038356,-8305.18258694,0.00031322,2]
[385711600,1757985038365,-500.0,0.00031332,7]
[385711602,1757985038375,-157.1,0.00031418,30]
[385711604,1757985038384,-163.80715878,0.00031478,7]
[385711606,1757985038393,-500.0,0.00031523,2]
[385711608,1757985038403,-211.25,0.00031523,2]
[385711610,1757985038412,-500.0,0.00031568,7]
[385711612,1757985038421,-9223.02310015,0.0003167,2]
[385711614,1757985038430,-8305.18258694,0.0003167,2]
[385711616,1757985038442,-15689.0,0.0003168,2]
[385711618,1757985038452,-570.68,0.00031751,2]
[385711620,1757985038461,-200.0,0.00031763,2]
[385711622,1757985038471,-500.0,0.00031772,7]
[385711624,1757985038480,-500.0,0.00031797,2]
[385711626,1757985038489,-164.38,0.00031858,30]
[385711628,1757985038498,-161.20297567,0.00031882,2]
[385711630,1757985038508,-9223.02310015,0.00031883,2]
[385711632,1757985038517,-302.94,0.00031903,2]
[385711634,1757985038527,-8305.18258694,0.00031918,2]
[385711636,1757985038538,-198.64,0.00031928,2]
[385711638,1757985038547,-500.0,0.00031963,7]
[385711640,1757985038556,-500.0,0.00031978,7]
[385711642,1757985038566,-9223.02310015,0.00031979,2]
[385711644,1757985038575,-5445.55249536,0.00031989,2]
[385711646,1757985038584,-5897.62021485,0.00031989,2]
[385711648,1757985038594,-8305.18258694,0.0003202,2]
[385711650,1757985038603,-150.0,0.0003203,7]
[385711652,1757985038612,-150.0,0.0003203,7]
[385711654,1757985038621,-150.0,0.0003203,7]
[385711656,1757985038631,-150.0,0.0003203,7]
[385711658,1757985038642,-150.0,0.0003203,7]
[385711660,1757985038651,-150.0,0.0003203,7]
[385711663,1757985038662,-150.0,0.0003203,7]
[385711665,1757985038672,-150.0,0.0003203,7]
[385711666,1757985038683,-150.70569818,0.0003203,7]
[385711668,1757985038693,-279.41398133,0.0003203,7]
[385711670,1757985038707,-150.0,0.0003203,7]
[385711672,1757985038717,-150.0,0.0003203,7]
[385711674,1757985038731,-150.0,0.0003203,7]
[385711676,1757985038741,-150.0,0.0003203,7]
[385711678,1757985038750,-195.42859183,0.00032071,2]
[385711680,1757985038760,-500.0,0.00032085,7]
[385711682,1757985038771,-500.0,0.00032185,7]
[385711684,1757985038781,-1852.42,0.00032201,2]
[385711686,1757985038790,-500.0,0.00032203,7]
[385711688,1757985038799,-500.0,0.00032216,7]
[385711690,1757985038809,-3839.2,0.00032293,2]
[385711692,1757985038818,-1425.0,0.00032353,2]
[385711694,1757985038827,-500.0,0.00032453,7]
[385711696,1757985038836,-500.0,0.00032498,7]
[385711698,1757985038845,-9223.02310015,0.00032501,2]
[385711700,1757985038854,-1425.0,0.00032511,2]
[385711702,1757985038863,-8305.18258694,0.00032563,2]
[385711704,1757985038873,-3000.0,0.00032573,2]
[385711706,1757985038883,-500.0,0.00032578,7]
[385711708,1757985038892,-500.0,0.00032612,7]
[385711710,1757985038901,-150.0,0.00032623,7]
[385711712,1757985038910,-174.46,0.00032663,120]
[385711714,1757985038919,-500.0,0.00032665,7]
[385711716,1757985038929,-500.0,0.00032675,7]
[385711718,1757985038938,-5445.55249536,0.00032694,2]
[385711720,1757985038947,-5897.62021485,0.00032694,2]
[385711722,1757985038956,-157.1,0.000327,30]
[385711724,1757985038965,-500.0,0.00032712,7]
[385711726,1757985038974,-150.0,0.00032742,7]
[385711728,1757985038983,-161.20297567,0.0003279,2]
[385711730,1757985038992,-9223.02310015,0.0003284,2]
[385711732,1757985039001,-8305.18258694,0.0003284,2]
[385711734,1757985039010,-1425.0,0.0003286,2]
[385711736,1757985039020,-800.0,0.00032876,30]
[385711738,1757985039028,-800.0,0.00032876,30]
[385711740,1757985039037,-800.0,0.00032876,30]
[385711742,1757985039047,-800.0,0.00032876,30]
[385711744,1757985039056,-800.0,0.00032876,30]
[385711746,1757985039067,-800.0,0.00032876,30]
[385711748,1757985039079,-800.0,0.00032876,30]
[385711750,1757985039089,-800.0,0.00032876,30]
[385711752,1757985039099,-817.2836,0.00032876,30]
[385711754,1757985039110,-499.16266562,0.00032934,7]
[385711756,1757985039119,-211.25,0.00032956,2]
[385711758,1757985039128,-500.0,0.00032983,7]
[385711760,1757985039137,-500.0,0.00033014,7]
[385711762,1757985039146,-151.0,0.00033019,7]
[385711763,1757985039155,-151.0,0.00033019,7]
[385711764,1757985039164,-151.0,0.00033019,7]
[385711765,1757985039173,-151.0,0.00033019,7]
[385711766,1757985039188,-151.0,0.00033019,7]
[385711767,1757985039197,-6711.8,0.00033019,2]
[385711768,1757985039205,-500.0,0.00033029,7]
[385711769,1757985039214,-8305.18258694,0.00033061,2]
[385711770,1757985039223,-151.0,0.00033061,7]
[385711771,1757985039232,-163.730829,0.00033061,7]
[385711772,1757985039240,-163.730829,0.00033061,7]
[385711773,1757985039250,-151.0,0.00033061,7]
[385711775,1757985039259,-163.730829,0.00033061,7]
[385711777,1757985039269,-156.64368,0.00033061,7]
[385711779,1757985039279,-163.730829,0.00033061,7]
[385711781,1757985039287,-151.0,0.00033061,7]
[385711783,1757985039297,-151.0,0.00033061,7]
[385711785,1757985039306,-151.0,0.00033061,7]
[385711787,1757985039314,-151.0,0.00033061,7]
[385711789,1757985039323,-151.0,0.00033061,7]
[385711791,1757985039332,-151.0,0.00033061,7]
[385711793,1757985039341,-151.0,0.00033061,7]
[385711795,1757985039350,-151.0,0.00033061,7]
[385711797,1757985039359,-500.0,0.00033071,7]
[385711799,1757985039368,-381.11904618,0.00033078,2]
[385711802,1757985039378,-500.0,0.000331,7]